fUSD/lending_fUSD_20250616
["ID","MTS","AMOUNT","RATE_DAILY","PERIOD"]
[366164332,1750095063261,-1310.42,0.00016216,2]
[366164333,1750095063271,-192.362054,0.00016216,2]
[366164334,1750095063281,-490.0,0.00016216,2]
[366164335,1750095063291,-490.0,0.00016216,2]
[366164336,1750095063301,-739.03,0.00016216,2]
[366164337,1750095063311,-989.4,0.00016216,2]
[366164338,1750095063321,-490.0,0.00016216,2]
[366164339,1750095063331,-490.0,0.00016216,2]
[366164340,1750095063340,-3937.98,0.00016216,2]
[366164341,1750095063350,-1292.78,0.00016216,2]
[366164342,1750095063360,-547.93,0.00016216,2]
[366164343,1750095063370,-731.9,0.00016216,2]
[366164344,1750095063381,-746.33,0.00016216,2]
[366164345,1750095063391,-765.77,0.00016216,2]
[366164346,1750095063401,-490.0,0.00016216,2]
[366164347,1750095063410,-513.14,0.00016216,2]
[366164348,1750095063420,-808.28,0.00016216,2]
[366164349,1750095063430,-490.0,0.00016216,2]
[366164350,1750095063439,-1059.52,0.00016216,2]
[366164351,1750095063449,-151.0,0.00016216,2]
[366164352,1750095063460,-2036.59,0.00016216,2]
[366164353,1750095063470,-151.0,0.00016216,2]
[366164354,1750095063479,-151.0,0.00016216,2]
[366164355,1750095063489,-151.0,0.00016216,2]
[366164356,1750095063498,-521.55,0.00016216,2]
[366164357,1750095063509,-13257.32,0.00016216,2]
[366164358,1750095063519,-490.0,0.00016216,2]
[366164359,1750095063528,-490.0,0.00016216,2]
[366164360,1750095063538,-565.79,0.00016216,2]
[366164361,1750095063549,-1256.92,0.00016216,2]
[366164362,1750095063560,-1808.6,0.00016216,2]
[366164363,1750095063570,-2051.03,0.00016216,2]
[366164364,1750095063580,-490.0,0.00016216,2]
[366164365,1750095063590,-707.48,0.00016216,2]
[366164366,1750095063599,-490.0,0.00016216,2]
[366164367,1750095063609,-490.0,0.00016216,2]
[366164368,1750095063619,-2042.34,0.00016216,2]
[366164369,1750095063629,-1655.08,0.00016216,2]
[366164370,1750095063639,-490.0,0.00016216,2]
[366164371,1750095063650,-1160.65,0.00016216,2]
[366164372,1750095063660,-490.0,0.00016216,2]
[366164373,1750095063670,-748.27,0.00016216,2]
[366164374,1750095063679,-490.0,0.00016216,2]
[366164375,1750095063690,-13997.58,0.00016216,2]
[366164376,1750095063700,-1227.45,0.00016216,2]
[366164377,1750095063710,-503.34,0.00016216,2]
[366164378,1750095063720,-490.0,0.00016216,2]
[366164379,1750095063730,-494.58236387,0.00016216,2]
[366164380,1750095063740,-642.99,0.00016216,2]
[366164381,1750095063750,-490.0,0.00016216,2]
[366164382,1750095063760,-595.21,0.00016216,2]
[366164383,1750095063772,-613.01,0.00016216,2]
[366164384,1750095063783,-151.0,0.00016216,2]
[366164385,1750095063794,-151.0,0.00016216,2]
[366164386,1750095063805,-5218.54,0.00016216,2]
[366164387,1750095063815,-151.0,0.00016216,2]
[366164388,1750095063826,-490.0,0.00016216,2]
[366164389,1750095063836,-818.13,0.00016216,2]
[366164390,1750095063847,-151.0,0.00016216,2]
[366164391,1750095063857,-151.0,0.00016216,2]
[366164392,1750095063867,-877.25,0.00016216,2]
[366164393,1750095063880,-151.0,0.00016216,2]
[366164394,1750095063891,-600.7,0.00016216,2]
[366164395,1750095063901,-793.01,0.00016216,2]
[366164396,1750095063910,-490.0,0.00016216,2]
[366164397,1750095063920,-1258.58,0.00016216,2]
[366164398,1750095063930,-490.0,0.00016216,2]
[366164399,1750095063940,-672.91796395,0.00016217,2]
[366164400,1750095063950,-769.91,0.00016217,2]
[366164401,1750095063960,-500.0,0.00016217,2]
[366164402,1750095063970,-490.0,0.00016217,2]
[366164403,1750095063981,-490.0,0.00016217,2]
[366164404,1750095063991,-869.45,0.00016217,2]
[366164405,1750095064001,-490.0,0.00016217,2]
[366164406,1750095064011,-820.01,0.00016217,2]
[366164407,1750095064021,-923.35,0.00016217,2]
[366164408,1750095064031,-490.0,0.00016217,2]
[366164409,1750095064041,-490.0,0.00016217,2]
[366164410,1750095064051,-490.0,0.00016217,2]
[366164411,1750095064061,-151.0,0.00016218,2]
[366164412,1750095064071,-151.0,0.00016218,2]
[366164413,1750095064082,-151.0,0.00016218,2]
[366164414,1750095064091,-151.0,0.00016218,2]
[366164415,1750095064101,-151.0,0.00016218,2]
[366164416,1750095064112,-151.0,0.00016218,2]
[366164417,1750095064122,-151.0,0.00016218,2]
[366164418,1750095064135,-151.0,0.00016218,2]
[366164419,1750095064146,-151.0,0.00016218,2]
[366164420,1750095064156,-151.0,0.00016218,2]
[366164421,1750095064167,-151.0,0.00016218,2]
[366164422,1750095064178,-151.0,0.00016218,2]
[366164423,1750095064188,-279.551581,0.00016218,2]
[366164424,1750095064199,-151.0,0.00016218,2]
[366164425,1750095064209,-151.0,0.00016218,2]
[366164426,1750095064218,-151.0,0.00016218,2]
[366164427,1750095064228,-490.0,0.00016218,2]
[366164428,1750095064238,-490.0,0.00016218,2]
[366164429,1750095064248,-490.0,0.00016218,2]
[366164430,1750095064259,-633.08,0.00016218,2]
[366164431,1750095064269,-496.31284511,0.00016218,2]
[366164432,1750095064280,-490.0,0.00016218,2]
[366164433,1750095064290,-151.0,0.00016218,2]
[366164434,1750095064300,-153.423738,0.00016218,2]
[366164435,1750095064310,-407.997566,0.00016218,2]
[366164436,1750095064320,-151.0,0.00016218,2]
[366164437,1750095064330,-407.997566,0.00016218,2]
[366164438,1750095064340,-490.0,0.00016218,2]
[366164439,1750095064350,-490.0,0.00016218,2]
[366164440,1750095064360,-151.0,0.00016218,2]
[366164441,1750095064370,-490.0,0.00016218,2]
[366164442,1750095064383,-151.0,0.00016218,2]
[366164443,1750095064393,-229.185774,0.00016218,2]
[366164444,1750095064403,-490.0,0.00016218,2]
[366164445,1750095064414,-490.0,0.00016218,2]
[366164446,1750095064424,-490.0,0.00016218,2]
[366164447,1750095064434,-490.0,0.00016218,2]
[366164448,1750095064444,-490.0,0.00016218,2]
[366164449,1750095064454,-490.0,0.00016218,2]
[366164450,1750095064464,-490.0,0.00016218,2]
[366164451,1750095064474,-490.0,0.00016218,2]
[366164452,1750095064484,-151.0,0.00016218,2]
[366164453,1750095064494,-490.0,0.00016218,2]
[366164454,1750095064503,-490.0,0.00016218,2]
[366164455,1750095064514,-490.0,0.00016218,2]
[366164456,1750095064524,-151.0,0.00016218,2]
[366164457,1750095064533,-215.845599,0.00016218,2]
[366164458,1750095064542,-151.0,0.00016218,2]
[366164459,1750095064552,-215.845599,0.00016218,2]
[366164460,1750095064562,-151.0,0.00016218,2]
[366164461,1750095064572,-151.0,0.00016218,2]
[366164462,1750095064582,-151.0,0.00016218,2]
[366164463,1750095064592,-151.0,0.00016218,2]
[366164464,1750095064602,-151.0,0.00016218,2]
[366164465,1750095064611,-151.0,0.00016218,2]
[366164466,1750095064622,-151.0,0.00016218,2]
[366164467,1750095064634,-151.0,0.00016218,2]
[366164468,1750095064645,-151.0,0.00016218,2]
[366164469,1750095064656,-214.331003,0.00016218,2]
[366164470,1750095064665,-205.277756,0.00016218,2]
[366164471,1750095064675,-179.32,0.00016218,2]
[366164472,1750095064685,-246.781126,0.00016218,2]
[366164473,1750095064695,-246.781126,0.00016218,2]
[366164474,1750095064706,-283.474556,0.00016218,2]
[366164475,1750095064716,-283.474556,0.00016218,2]
[366164476,1750095064726,-241.148886,0.00016218,2]
[366164477,1750095064736,-241.148886,0.00016218,2]
[366164478,1750095064746,-258.526144,0.00016218,2]
[366164479,1750095064756,-190.198923,0.00016218,2]
[366164480,1750095064766,-190.198923,0.00016218,2]
[366164481,1750095064780,-381.644848,0.00016218,2]
[366164482,1750095064790,-151.0,0.00016218,2]
[366164483,1750095064801,-381.644848,0.00016218,2]
[366164484,1750095064811,-151.0,0.00016218,2]
[366164485,1750095064821,-151.0,0.00016218,2]
[366164486,1750095064831,-226.966096,0.00016218,2]
[366164487,1750095064840,-226.966096,0.00016218,2]
[366164488,1750095064851,-151.0,0.00016218,2]
[366164489,1750095064861,-443.766481,0.00016218,2]
[366164490,1750095064871,-443.766481,0.00016218,2]
[366164491,1750095064885,-175.545141,0.00016218,2]
[366164492,1750095064895,-175.545141,0.00016218,2]
[366164493,1750095064905,-914.766594,0.00016218,2]
[366164494,1750095064916,-914.766594,0.00016218,2]
[366164495,1750095064926,-151.0,0.00016218,2]
[366164496,1750095064936,-344.09466274,0.00016218,2]
[366164497,1750095064946,-151.0,0.00016219,2]
[366164498,1750095064956,-151.0,0.00016219,2]
[366164499,1750095064966,-151.0,0.00016219,2]
[366164500,1750095064976,-151.0,0.00016219,2]
[366164501,1750095064986,-151.0,0.00016219,2]
[366164502,1750095064995,-151.0,0.00016219,2]
[366164503,1750095065005,-151.0,0.00016219,2]
[366164504,1750095065016,-153.068112,0.00016219,2]
[366164505,1750095065027,-151.0,0.00016219,2]
[366164506,1750095065037,-151.0,0.00016219,2]
[366164507,1750095065047,-153.362934,0.00016219,2]
[366164508,1750095065057,-151.0,0.00016219,2]
[366164509,1750095065067,-151.0,0.00016219,2]
[366164510,1750095065077,-151.0,0.00016219,2]
[366164511,1750095065086,-151.0,0.00016219,2]
[366164512,1750095065095,-252.720699,0.00016219,2]
[366164513,1750095065105,-151.0,0.00016219,2]
[366164514,1750095065115,-151.0,0.00016219,2]
[366164515,1750095065127,-207.69185,0.00016219,2]
[366164516,1750095065137,-151.0,0.00016219,2]
[366164517,1750095065147,-151.0,0.00016219,2]
[366164518,1750095065157,-203.213799,0.00016219,2]
[366164519,1750095065167,-504.79500773,0.00016219,2]
[366164520,1750095065177,-151.0,0.00016219,2]
[366164521,1750095065187,-228.053418,0.00016219,2]
[366164522,1750095065198,-151.0,0.00016219,2]
[366164523,1750095065208,-218.007186,0.00016219,2]
[366164524,1750095065219,-490.69535708,0.00016219,2]
[366164525,1750095065229,-151.0,0.00016219,2]
[366164526,1750095065240,-151.0,0.00016219,2]
[366164527,1750095065250,-151.0,0.00016219,2]
[366164528,1750095065260,-151.0,0.00016219,2]
[366164529,1750095065270,-151.0,0.00016219,2]
[366164530,1750095065280,-350.0,0.00016219,2]
[366164531,1750095065291,-151.0,0.00016219,2]
[366164532,1750095065302,-151.0,0.00016219,2]
[366164533,1750095065312,-151.0,0.00016219,2]
[366164534,1750095065322,-455.11949549,0.00016219,2]
[366164535,1750095065331,-490.0,0.00016219,2]
[366164536,1750095065342,-151.0,0.00016219,2]
[366164537,1750095065351,-237.562623,0.00016219,2]
[366164538,1750095065361,-237.562623,0.00016219,2]
[366164539,1750095065371,-151.0,0.00016219,2]
[366164540,1750095065383,-494.14761782,0.00016219,2]
[366164541,1750095065739,-151.0,0.00016219,2]
[366164542,1750095065751,-151.0,0.00016219,2]
[366164543,1750095065760,-151.0,0.00016219,2]
[366164544,1750095065771,-151.0,0.00016219,2]
[366164545,1750095065783,-407.997566,0.00016219,2]
[366164546,1750095065793,-151.0,0.00016219,2]
[366164547,1750095065803,-407.997566,0.00016219,2]
[366164548,1750095065813,-151.0,0.00016219,2]
[366164549,1750095065823,-151.0,0.00016219,2]
[366164550,1750095065833,-151.0,0.00016219,2]
[366164551,1750095065842,-151.0,0.00016219,2]
[366164552,1750095065854,-229.185774,0.00016219,2]
[366164553,1750095065865,-256.534013,0.00016219,2]
[366164554,1750095065875,-215.845599,0.00016219,2]
[366164555,1750095065885,-151.0,0.00016219,2]
[366164556,1750095065894,-215.845599,0.00016219,2]
[366164557,1750095065905,-151.0,0.00016219,2]
[366164558,1750095065915,-151.0,0.00016219,2]
[366164559,1750095065924,-282.04685,0.00016219,2]
[366164560,1750095065934,-151.0,0.00016219,2]
[366164561,1750095065944,-490.0,0.00016219,2]
[366164562,1750095065955,-490.0,0.00016219,2]
[366164563,1750095065965,-1345.52,0.00016219,2]
[366164564,1750095065974,-845.88,0.00016219,2]
[366164565,1750095065984,-1311.85,0.00016219,2]
[366164566,1750095065993,-151.0,0.00016219,2]
[366164567,1750095066003,-151.0,0.00016219,2]
[366164568,1750095066014,-490.0,0.00016219,2]
[366164569,1750095066024,-490.0,0.00016219,2]
[366164570,1750095066034,-151.0,0.00016219,2]
[366164571,1750095066043,-490.0,0.00016219,2]
[366164572,1750095066053,-151.0,0.00016219,2]
[366164573,1750095066063,-151.0,0.00016219,2]
[366164574,1750095066073,-935.46,0.00016219,2]
[366164575,1750095066082,-886.36,0.00016219,2]
[366164576,1750095066093,-1190.56,0.00016219,2]
[366164577,1750095066102,-490.0,0.00016219,2]
[366164578,1750095066112,-1204.62,0.00016219,2]
[366164579,1750095066121,-618.79,0.00016219,2]
[366164580,1750095066131,-490.0,0.00016219,2]
[366164581,1750095066141,-490.0,0.00016219,2]
[366164582,1750095066151,-875.17,0.00016219,2]
[366164583,1750095066162,-654.22,0.00016219,2]
[366164584,1750095066171,-1006.68,0.00016219,2]
[366164585,1750095066181,-1050.35,0.00016219,2]
[366164586,1750095066192,-246.781126,0.00016219,2]
[366164587,1750095066202,-246.781126,0.00016219,2]
[366164588,1750095066212,-490.0,0.00016219,2]
[366164589,1750095066223,-490.0,0.00016219,2]
[366164590,1750095066234,-283.474556,0.00016219,2]
[366164591,1750095066245,-283.474556,0.00016219,2]
[366164592,1750095066255,-241.148886,0.00016219,2]
[366164593,1750095066266,-241.148886,0.00016219,2]
[366164594,1750095066276,-190.198923,0.00016219,2]
[366164595,1750095066287,-190.198923,0.00016219,2]
[366164596,1750095066296,-381.644848,0.00016219,2]
[366164597,1750095066306,-151.0,0.00016219,2]
[366164598,1750095066316,-381.644848,0.00016219,2]
[366164599,1750095066326,-151.0,0.00016219,2]
[366164600,1750095066336,-226.966096,0.00016219,2]
[366164601,1750095066346,-226.966096,0.00016219,2]
[366164602,1750095066356,-443.766481,0.00016219,2]
[366164603,1750095066366,-443.766481,0.00016219,2]
[366164604,1750095066377,-175.545141,0.00016219,2]
[366164605,1750095066388,-175.545141,0.00016219,2]
[366164606,1750095066399,-226.37812,0.00016219,2]
[366164607,1750095066409,-151.0,0.0001622,2]
[366164608,1750095066419,-151.0,0.0001622,2]
[366164609,1750095066429,-151.0,0.0001622,2]
[366164610,1750095066440,-151.0,0.0001622,2]
[366164611,1750095066450,-151.0,0.0001622,2]
[366164612,1750095066460,-151.0,0.0001622,2]
[366164613,1750095066470,-151.0,0.0001622,2]
[366164614,1750095066480,-151.0,0.0001622,2]
[366164615,1750095066490,-151.0,0.0001622,2]
[366164616,1750095066500,-151.0,0.0001622,2]
[366164617,1750095066510,-151.0,0.0001622,2]
[366164618,1750095066521,-151.0,0.0001622,2]
[366164619,1750095066531,-225.027572,0.0001622,2]
[366164620,1750095066542,-225.027572,0.0001622,2]
[366164621,1750095066552,-151.0,0.0001622,2]
[366164622,1750095066562,-295.452147,0.0001622,2]
[366164623,1750095066572,-295.452147,0.0001622,2]
[366164624,1750095066582,-151.0,0.0001622,2]
[366164625,1750095066592,-151.0,0.0001622,2]
[366164626,1750095066601,-151.0,0.0001622,2]
[366164627,1750095066612,-151.0,0.0001622,2]
[366164628,1750095066622,-151.0,0.0001622,2]
[366164629,1750095066633,-151.0,0.0001622,2]
[366164630,1750095066643,-151.0,0.0001622,2]
[366164631,1750095066652,-151.0,0.0001622,2]
[366164632,1750095066662,-151.0,0.0001622,2]
[366164633,1750095066678,-237.562623,0.0001622,2]
[366164634,1750095066688,-237.562623,0.0001622,2]
[366164635,1750095066698,-151.0,0.00016221,2]
[366164636,1750095066708,-151.0,0.00016221,2]
[366164637,1750095066718,-151.0,0.00016221,2]
[366164638,1750095066728,-151.0,0.00016221,2]
[366164639,1750095066739,-151.0,0.00016221,2]
[366164640,1750095066749,-151.0,0.00016221,2]
[366164641,1750095066759,-295.452147,0.00016221,2]
[366164642,1750095066772,-295.452147,0.00016221,2]
[366164643,1750095066785,-151.0,0.00016221,2]
[366164644,1750095066795,-151.0,0.00016221,2]
[366164645,1750095066806,-151.0,0.00016221,2]
[366164646,1750095066816,-152.930908,0.00016221,2]
[366164647,1750095066827,-151.0,0.00016221,2]
[366164648,1750095066838,-151.0,0.00016221,2]
[366164649,1750095066850,-500.0,0.00016222,2]
[366164650,1750095066861,-151.0,0.00016225,2]
[366164651,1750095066873,-293.630481,0.00016225,2]
[366164652,1750095066884,-229.185774,0.00016225,2]
[366164653,1750095066895,-5517.00868513,0.00016226,2]
[366164654,1750095066905,-5435.7625811,0.00016234,2]
[366164655,1750095066916,-300.0,0.00016244,2]
[366164656,1750095066926,-5857.69065993,0.00016245,2]
[366164657,1750095066936,-151.0,0.00016245,2]
[366164658,1750095066946,-256.538632,0.00016245,2]
[366164659,1750095066956,-500.0,0.0001625,2]
[366164660,1750095066967,-2104.87630264,0.0001625,2]
[366164661,1750095066978,-496.417587,0.0001625,2]
[366164662,1750095066988,-496.417587,0.0001625,2]
[366164663,1750095066998,-151.0,0.0001625,2]
[366164664,1750095067008,-192.820252,0.0001625,2]
[366164665,1750095067019,-151.0,0.0001625,2]
[366164666,1750095067030,-151.0,0.0001625,2]
[366164667,1750095067040,-151.0,0.0001625,2]
[366164668,1750095067051,-154.884533,0.0001625,2]
[366164669,1750095067062,-2815.58284374,0.00016266,2]
[366164670,1750095067072,-320.70802654,0.00016267,2]
[366164671,1750095067083,-423.82908471,0.00016268,2]
[366164672,1750095067092,-500.0,0.00016273,2]
[366164673,1750095067102,-470.58509326,0.00016273,2]
[366164674,1750095067112,-161.39950928,0.00016273,2]
[366164675,1750095067131,-500.26732313,0.00016273,2]
[366164676,1750095067146,-641.53462198,0.00016273,2]
[366164677,1750095067157,-500.0,0.00016273,2]
[366164678,1750095067168,-500.0,0.00016273,2]
[366164679,1750095067178,-500.0,0.00016273,2]
[366164680,1750095067190,-502.47503947,0.00016273,2]
[366164681,1750095067201,-500.0,0.00016273,2]
[366164682,1750095067211,-500.0,0.00016273,2]
[366164683,1750095067222,-187.4618364,0.00016273,2]
[366164684,1750095067232,-500.0,0.00016273,2]
[366164685,1750095067243,-500.0,0.00016273,2]
[366164686,1750095067254,-500.0,0.00016273,2]
[366164687,1750095067264,-500.0,0.00016273,2]
[366164688,1750095067275,-500.0,0.00016273,2]
[366164689,1750095067286,-163.75480245,0.00016273,2]
[366164690,1750095067297,-500.0,0.00016273,2]
[366164691,1750095067307,-359.12499857,0.00016273,2]
[366164692,1750095067318,-522.81888161,0.00016273,2]
[366164693,1750095067330,-500.0,0.00016273,2]
[366164694,1750095067341,-500.0,0.00016273,2]
[366164695,1750095067351,-500.0,0.00016273,2]
[366164696,1750095067363,-157.50233827,0.00016273,2]
[366164697,1750095067374,-500.0,0.00016273,2]
[366164698,1750095067385,-500.0,0.00016273,2]
[366164699,1750095067396,-500.0,0.00016273,2]
[366164700,1750095067406,-308.71290032,0.00016273,2]
[366164701,1750095067416,-500.27355599,0.00016273,2]
[366164702,1750095067427,-769.91,0.00016275,2]
[366164703,1750095067437,-769.91,0.00016275,2]
[366164704,1750095067448,-769.91,0.00016275,2]
[366164705,1750095067458,-769.91,0.00016275,2]
[366164706,1750095067468,-769.91,0.00016275,2]
[366164707,1750095067479,-769.91,0.00016275,2]
[366164708,1750095067489,-769.91,0.00016275,2]
[366164709,1750095067499,-769.91,0.00016275,2]
[366164710,1750095067510,-542.98,0.00016276,2]
[366164711,1750095067521,-500.0,0.00016277,2]
[366164712,1750095067531,-151.0,0.00016279,2]
[366164713,1750095067542,-151.0,0.00016279,2]
[366164714,1750095067552,-914.766594,0.00016279,2]
[366164715,1750095067569,-914.766594,0.00016279,2]
[366164716,1750095067580,-5857.69065993,0.00016279,2]
[366164717,1750095067591,-153.86740247,0.0001628,2]
[366164718,1750095067602,-6593.38480889,0.0001628,2]
[366164719,1750095067612,-1000.0,0.00016286,2]
[366164720,1750095067622,-1000.0,0.00016286,2]
[366164721,1750095067634,-500.0,0.00016286,2]
[366164722,1750095067645,-1000.0,0.00016286,2]
[366164723,1750095067656,-1100.0,0.00016286,2]
[366164724,1750095067666,-5435.7625811,0.00016286,2]
[366164725,1750095067677,-189.0,0.00016289,2]
[366164726,1750095067688,-3333.0,0.00016292,2]
[366164727,1750095067699,-701.46,0.00016297,2]
[366164728,1750095067709,-490.0,0.00016297,2]
[366164729,1750095067719,-622.67,0.00016297,2]
[366164730,1750095067730,-1003.02,0.00016297,2]
[366164731,1750095067741,-990.32,0.00016297,2]
[366164732,1750095067751,-1053.57,0.00016297,2]
[366164733,1750095067764,-490.0,0.00016297,2]
[366164734,1750095067777,-743.36,0.00016297,2]
[366164735,1750095067787,-603.33,0.00016297,2]
[366164736,1750095067800,-693.43,0.00016297,2]
[366164737,1750095067812,-525.21,0.00016297,2]
[366164738,1750095067824,-1432.22,0.00016297,2]
[366164739,1750095067836,-630.76,0.00016297,2]
[366164740,1750095067846,-4195.8,0.00016297,2]
[366164741,1750095067858,-490.0,0.00016297,2]
[366164742,1750095067868,-490.0,0.00016297,2]
[366164743,1750095067878,-829.0,0.00016297,2]
[366164744,1750095067888,-2668.72,0.00016297,2]
[366164745,1750095067898,-525.78,0.00016297,2]
[366164746,1750095067908,-855.42,0.00016297,2]
[366164747,1750095067918,-767.47,0.00016297,2]
[366164748,1750095067928,-847.11,0.00016297,2]
[366164749,1750095067938,-760.67,0.00016297,2]
[366164750,1750095067948,-602.57,0.00016297,2]
[366164751,1750095067958,-151.0,0.00016299,2]
[366164752,1750095067968,-151.0,0.00016299,2]
[366164753,1750095067978,-151.0,0.00016299,2]
[366164754,1750095067988,-151.0,0.00016299,2]
[366164755,1750095068004,-151.0,0.00016299,2]
[366164756,1750095068015,-151.0,0.00016299,2]
[366164757,1750095068025,-168.492557,0.00016299,2]
[366164758,1750095068035,-151.0,0.00016299,2]
[366164759,1750095068045,-151.0,0.00016299,2]
[366164760,1750095068055,-151.0,0.00016299,2]
[366164761,1750095068066,-246.781126,0.00016299,2]
[366164762,1750095068076,-246.781126,0.00016299,2]
[366164763,1750095068086,-283.474556,0.00016299,2]
[366164764,1750095068096,-283.474556,0.00016299,2]
[366164765,1750095068107,-241.148886,0.00016299,2]
[366164766,1750095068117,-241.148886,0.00016299,2]
[366164767,1750095068128,-241.148886,0.00016299,2]
[366164768,1750095068138,-241.148886,0.00016299,2]
[366164769,1750095068149,-151.0,0.00016299,2]
[366164770,1750095068159,-151.0,0.00016299,2]
[366164771,1750095068170,-175.545141,0.00016299,2]
[366164772,1750095068180,-175.545141,0.00016299,2]
[366164773,1750095068191,-769.91,0.00016299,2]
[366164774,1750095068201,-769.91,0.00016299,2]
[366164775,1750095068212,-158571.0845752,0.000163,2]
[366164776,1750095068267,-150.0,0.00015784,2]
[366164777,1750095068278,-150.0,0.00015794,2]
[366164778,1750095068288,-150.0,0.00015937,2]
[366164779,1750095068298,-150.0,0.00016048,2]
[366164780,1750095068516,-294.134,0.00016292,2]
[366164781,1750095068526,-2805.845966,0.000163,2]
[366164782,1750095068570,-150.0,0.00015973,2]
[366164783,1750095068579,-150.0,0.00015985,2]
[366164784,1750095068588,-150.0,0.00016028,2]
[366164785,1750095068598,-46355.21448004,0.000163,2]
[366164786,1750095069261,203.0,0.00014741,2]
[366164787,1750095069836,-490.0,0.00015724,2]
[366164788,1750095069846,-490.0,0.00015724,2]
[366164789,1750095069856,-150.0,0.00015777,2]
[366164790,1750095069867,-150.0,0.00015801,2]
[366164791,1750095069877,-150.0,0.00015801,2]
[366164792,1750095069888,-150.0,0.00015804,2]
[366164793,1750095069899,-490.0,0.00015804,2]
[366164794,1750095069909,-150.0,0.00015811,2]
[366164795,1750095069919,-150.0,0.00015824,2]
[366164796,1750095069929,-150.0,0.00015829,2]
[366164797,1750095069939,-150.0,0.00015831,2]
[366164798,1750095069950,-106.8779132,0.00015833,2]
[366164799,1750095069963,-43.1220868,0.00015833,2]
[366164800,1750095069973,-150.0,0.00015833,2]
[366164801,1750095069983,-150.0,0.00015836,2]
[366164802,1750095069995,-150.0,0.00015838,2]
[366164803,1750095070005,-150.0,0.00015841,2]
[366164804,1750095070014,-150.0,0.00015842,2]
[366164805,1750095070025,-150.0,0.00015845,2]
[366164806,1750095070035,-150.0,0.00015846,2]
[366164807,1750095070045,-150.0,0.00015847,2]
[366164808,1750095070055,-150.0,0.00015849,2]
[366164809,1750095070064,-150.0,0.00015855,2]
[366164810,1750095070075,-150.0,0.00015856,2]
[366164811,1750095070085,-70.0780132,0.00015864,2]
[366164812,1750095071070,-490.0,0.00015724,2]
[366164813,1750095071080,-490.0,0.00015724,2]
[366164814,1750095071091,-79.9219868,0.00015864,2]
[366164815,1750095071100,-150.0,0.00015875,2]
[366164816,1750095071110,-150.0,0.00015876,2]
[366164817,1750095071120,-150.0,0.00015878,2]
[366164818,1750095071129,-150.0,0.00015878,2]
[366164819,1750095071142,-150.0,0.00015882,2]
[366164820,1750095071151,-490.0,0.00015889,2]
[366164821,1750095071162,-150.0,0.00015892,2]
[366164822,1750095071172,-150.0,0.00015895,2]
[366164823,1750095071182,-150.0,0.00015896,2]
[366164824,1750095071192,-150.0,0.00015898,2]
[366164825,1750095071202,-150.0,0.00015903,2]
[366164826,1750095071212,-150.0,0.00015918,2]
[366164827,1750095071222,-150.0,0.00015918,2]
[366164828,1750095071231,-150.0,0.00015921,2]
[366164829,1750095071241,-150.0,0.00015927,2]
[366164830,1750095071251,-150.0,0.0001593,2]
[366164831,1750095071261,-150.0,0.00015931,2]